fUSD/lending_fUSD_20250407
["ID","MTS","AMOUNT","RATE_DAILY","PERIOD"]
[357436576,1744066275526,-500.0,0.00044109,30]
[357436578,1744066275536,-500.0,0.00044109,30]
[357436580,1744066275546,-500.0,0.00044109,30]
[357436582,1744066275555,-941.73,0.00044109,30]
[357436584,1744066275566,-500.0,0.00044109,30]
[357436587,1744066275578,-500.0,0.00044109,30]
[357436589,1744066275588,-525.21,0.00044109,30]
[357436590,1744066275597,-851.56,0.00044109,30]
[357436592,1744066275607,-500.0,0.00044109,30]
[357436595,1744066275617,-500.0,0.00044109,30]
[357436596,1744066275627,-700.09,0.00044109,30]
[357436598,1744066275637,-500.0,0.00044109,30]
[357436600,1744066275646,-500.0,0.00044109,30]
[357436603,1744066275656,-500.0,0.00044109,30]
[357436604,1744066275665,-500.0,0.00044109,30]
[357436606,1744066275675,-500.0,0.00044109,30]
[357436608,1744066275685,-500.0,0.00044109,30]
[357436610,1744066275695,-500.0,0.00044109,30]
[357436612,1744066275705,-500.0,0.00044109,30]
[357436614,1744066275715,-500.0,0.00044109,30]
[357436616,1744066275725,-500.0,0.00044109,30]
[357436618,1744066275734,-500.0,0.00044109,30]
[357436620,1744066275743,-1149.3,0.00044109,30]
[357436622,1744066275753,-500.0,0.00044109,30]
[357436624,1744066275762,-500.0,0.00044109,30]
[357436626,1744066275772,-500.0,0.00044109,30]
[357436628,1744066275783,-500.0,0.00044109,30]
[357436630,1744066275793,-500.0,0.00044109,30]
[357436632,1744066275802,-500.0,0.00044109,30]
[357436634,1744066275812,-500.0,0.00044109,30]
[357436636,1744066275822,-500.0,0.00044109,30]
[357436638,1744066275831,-500.0,0.00044109,30]
[357436640,1744066275842,-2178.95,0.00044109,30]
[357436642,1744066275851,-500.0,0.00044109,30]
[357436644,1744066275862,-500.0,0.00044109,30]
[357436646,1744066275871,-500.0,0.00044109,30]
[357436648,1744066275882,-500.0,0.00044109,30]
[357436650,1744066275895,-500.0,0.00044109,30]
[357436652,1744066275905,-500.0,0.00044109,30]
[357436654,1744066275915,-500.0,0.00044109,30]
[357436656,1744066275925,-500.0,0.00044109,30]
[357436658,1744066275935,-500.0,0.00044109,30]
[357436660,1744066275945,-500.0,0.00044109,30]
[357436662,1744066275954,-500.0,0.00044109,30]
[357436664,1744066275965,-500.0,0.00044109,30]
[357436666,1744066275974,-558.01,0.00044109,30]
[357436668,1744066275983,-854.58,0.00044109,30]
[357436670,1744066275993,-500.0,0.00044109,30]
[357436672,1744066276002,-500.0,0.00044109,30]
[357436674,1744066276012,-576.47,0.00044109,30]
[357436676,1744066276021,-901.63,0.00044109,30]
[357436678,1744066276031,-500.0,0.00044109,30]
[357436680,1744066276041,-1195.39,0.00044109,10]
[357436682,1744066276051,-500.0,0.00044109,30]
[357436684,1744066276061,-500.0,0.00044109,30]
[357436686,1744066276070,-287.75945723,0.00044109,30]
[357436687,1744066276080,-765.47,0.00044109,30]
[357436688,1744066276089,-500.0,0.00044109,30]
[357436689,1744066276099,-500.0,0.00044109,30]
[357436690,1744066276108,-500.0,0.00044109,30]
[357436691,1744066276117,-500.0,0.00044109,30]
[357436692,1744066276127,-500.0,0.00044109,30]
[357436693,1744066276137,-558.29470208,0.00044109,30]
[357436694,1744066276147,-566.32,0.00044109,30]
[357436695,1744066276156,-500.0,0.00044109,30]
[357436696,1744066276165,-741.23,0.00044109,30]
[357436697,1744066276174,-500.0,0.00044109,30]
[357436698,1744066276183,-500.0,0.00044109,30]
[357436699,1744066276194,-500.0,0.00044109,30]
[357436700,1744066276203,-500.0,0.00044109,30]
[357436701,1744066276214,-500.0,0.00044109,30]
[357436702,1744066276224,-322.527478,0.00044109,14]
[357436703,1744066276234,-500.0,0.00044109,30]
[357436704,1744066276244,-534.08990638,0.00044109,30]
[357436705,1744066276254,-500.0,0.00044109,30]
[357436706,1744066276263,-500.0,0.00044109,30]
[357436707,1744066276273,-322.527471,0.00044109,14]
[357436708,1744066276283,-500.0,0.00044109,30]
[357436709,1744066276293,-500.0,0.00044109,30]
[357436710,1744066276303,-500.0,0.00044109,30]
[357436711,1744066276312,-748.83,0.00044109,30]
[357436712,1744066276322,-500.0,0.00044109,30]
[357436713,1744066276331,-179.240717,0.00044109,14]
[357436715,1744066276340,-500.0,0.00044109,30]
[357436717,1744066276351,-2000.0,0.00044109,2]
[357436719,1744066276361,-500.0,0.00044109,30]
[357436721,1744066276371,-692.44,0.00044109,30]
[357436723,1744066276381,-1130.46,0.00044109,30]
[357436725,1744066276391,-179.240713,0.00044109,14]
[357436727,1744066276401,-1007.28,0.00044109,30]
[357436729,1744066276411,-531.42,0.00044109,30]
[357436731,1744066276421,-500.0,0.00044109,30]
[357436733,1744066276431,-500.0,0.00044109,30]
[357436735,1744066276440,-500.0,0.00044109,30]
[357436737,1744066276450,-500.0,0.00044109,30]
[357436739,1744066276460,-500.0,0.00044109,30]
[357436741,1744066276472,-500.0,0.00044109,30]
[357436743,1744066276482,-519.5,0.00044109,30]
[357436745,1744066276492,-500.0,0.00044109,30]
[357436747,1744066276502,-527.57273955,0.00044109,30]
[357436749,1744066276512,-180.79259346,0.00044109,30]
[357436751,1744066276522,-758.89,0.00044109,30]
[357436753,1744066276533,-500.0,0.00044109,30]
[357436755,1744066276543,-500.0,0.00044109,30]
[357436757,1744066276553,-379.355425,0.00044109,14]
[357436759,1744066276563,-582.07,0.00044109,30]
[357436761,1744066276573,-500.0,0.00044109,30]
[357436763,1744066276583,-500.0,0.00044109,30]
[357436765,1744066276593,-379.355429,0.00044109,14]
[357436767,1744066276602,-500.0,0.00044109,30]
[357436769,1744066276611,-500.0,0.00044109,30]
[357436771,1744066276621,-500.0,0.00044109,30]
[357436773,1744066276631,-500.0,0.00044109,30]
[357436775,1744066276640,-701.21,0.00044109,30]
[357436777,1744066276650,-1088.87,0.00044109,30]
[357436779,1744066276660,-500.0,0.00044109,30]
[357436781,1744066276670,-516.77,0.00044109,30]
[357436783,1744066276679,-1253.98,0.00044109,30]
[357436785,1744066276689,-500.0,0.00044109,30]
[357436787,1744066276699,-674.89,0.00044109,30]
[357436789,1744066276709,-500.0,0.00044109,30]
[357436791,1744066276719,-210.08028235,0.00044109,30]
[357436793,1744066276728,-602.65,0.00044109,30]
[357436795,1744066276738,-500.0,0.00044109,30]
[357436797,1744066276748,-500.0,0.00044109,30]
[357436799,1744066276757,-500.0,0.00044109,7]
[357436801,1744066276767,-500.0,0.00044109,30]
[357436803,1744066276777,-500.0,0.00044109,30]
[357436805,1744066276788,-159.192218,0.00044109,14]
[357436807,1744066276798,-159.192218,0.00044109,14]
[357436809,1744066276809,-579.86,0.00044109,30]
[357436811,1744066276819,-159.192218,0.00044109,14]
[357436813,1744066276828,-159.192208,0.00044109,14]
[357436815,1744066276838,-151.0,0.00044109,14]
[357436817,1744066276848,-500.0,0.00044109,30]
[357436819,1744066276858,-500.0,0.00044109,30]
[357436821,1744066276868,-500.0,0.00044109,30]
[357436823,1744066276878,-500.0,0.00044109,30]
[357436825,1744066276890,-423.223858,0.00044109,120]
[357436827,1744066276900,-500.0,0.00044109,30]
[357436829,1744066276910,-565.86,0.00044109,30]
[357436831,1744066276920,-500.0,0.00044109,30]
[357436833,1744066276931,-500.0,0.00044109,30]
[357436834,1744066276940,-500.0,0.00044109,30]
[357436837,1744066276950,-500.0,0.00044109,30]
[357436838,1744066276960,-500.0,0.00044109,30]
[357436841,1744066276971,-500.0,0.00044109,30]
[357436842,1744066276980,-500.0,0.00044109,30]
[357436845,1744066276990,-500.0,0.00044109,30]
[357436856,1744066277094,-565.32,0.00044109,30]
[357436858,1744066277104,-629.1683263,0.00044109,30]
[357436860,1744066277113,-500.0,0.00044109,30]
[357436862,1744066277123,-522.99686804,0.00044109,30]
[357436864,1744066277133,-543.53,0.00044109,30]
[357436866,1744066277142,-518.14,0.00044109,30]
[357436868,1744066277152,-500.0,0.00044109,30]
[357436870,1744066277162,-500.0,0.00044109,30]
[357436872,1744066277171,-717.16,0.00044109,30]
[357436874,1744066277181,-757.08,0.00044109,30]
[357436876,1744066277190,-500.0,0.00044109,30]
[357436878,1744066277199,-500.0,0.00044109,30]
[357436880,1744066277209,-500.0,0.00044109,30]
[357436882,1744066277218,-491.05914318,0.00044109,30]
[357436884,1744066277227,-500.0,0.00044109,30]
[357436886,1744066277237,-500.0,0.00044109,30]
[357436888,1744066277246,-500.0,0.00044109,30]
[357436890,1744066277255,-500.0,0.00044109,30]
[357436892,1744066277265,-500.0,0.00044109,30]
[357436894,1744066277274,-628.5,0.00044109,30]
[357436896,1744066277284,-906.23,0.00044109,30]
[357436898,1744066277293,-527.74711246,0.00044109,30]
[357436900,1744066277302,-500.0,0.00044109,30]
[357436902,1744066277311,-717.06,0.00044109,30]
[357436904,1744066277321,-525.89,0.00044109,30]
[357436906,1744066277331,-525.44,0.00044109,30]
[357436908,1744066277340,-500.0,0.00044109,30]
[357436910,1744066277351,-500.0,0.00044109,30]
[357436912,1744066277360,-500.0,0.00044109,30]
[357436914,1744066277370,-510.35,0.00044109,30]
[357436916,1744066277379,-500.0,0.00044109,30]
[357436918,1744066277389,-650.3,0.00044109,30]
[357436919,1744066277398,-500.0,0.00044109,30]
[357436921,1744066277407,-500.0,0.00044109,30]
[357436923,1744066277418,-553.19,0.00044109,30]
[357436925,1744066277427,-500.0,0.00044109,30]
[357436927,1744066277436,-500.0,0.00044109,30]
[357436929,1744066277446,-500.0,0.00044109,30]
[357436931,1744066277455,-500.0,0.00044109,30]
[357436933,1744066277465,-500.0,0.00044109,30]
[357436935,1744066277474,-540.89,0.00044109,30]
[357436937,1744066277483,-767.9,0.00044109,30]
[357436939,1744066277493,-500.0,0.00044109,30]
[357436941,1744066277503,-604.19363275,0.00044109,30]
[357436943,1744066277513,-634.9,0.00044109,30]
[357436945,1744066277522,-151.0,0.00044109,14]
[357436947,1744066277531,-151.0,0.00044109,14]
[357436949,1744066277541,-545.65,0.00044109,30]
[357436951,1744066277550,-407.84609652,0.00044109,30]
[357436953,1744066277559,-500.0,0.00044109,30]
[357436955,1744066277571,-500.0,0.00044109,30]
[357436957,1744066277581,-741.99,0.00044109,30]
[357436959,1744066277591,-500.0,0.00044109,30]
[357436961,1744066277601,-500.0,0.00044109,30]
[357436963,1744066277610,-500.0,0.00044109,30]
[357436965,1744066277619,-500.0,0.00044109,30]
[357436967,1744066277629,-500.0,0.00044109,30]
[357436969,1744066277638,-151.0,0.00044109,14]
[357436971,1744066277648,-500.0,0.00044109,30]
[357436973,1744066277657,-500.0,0.00044109,30]
[357436975,1744066277666,-500.0,0.00044109,30]
[357436977,1744066277677,-1275.84,0.00044109,30]
[357436979,1744066277686,-995.78,0.00044109,30]
[357436981,1744066277696,-500.0,0.00044109,30]
[357436983,1744066277705,-500.0,0.00044109,30]
[357436985,1744066277714,-500.0,0.00044109,30]
[357436987,1744066277724,-500.0,0.00044109,30]
[357436989,1744066277733,-500.0,0.00044109,30]
[357436991,1744066277742,-500.0,0.00044109,30]
[357436993,1744066277752,-500.0,0.00044109,30]
[357436994,1744066277761,-500.0,0.00044109,30]
[357436997,1744066277771,-658.32,0.00044109,30]
[357436999,1744066277782,-500.0,0.00044109,30]
[357437001,1744066277791,-564.57,0.00044109,30]
[357437003,1744066277800,-151.0,0.00044109,14]
[357437005,1744066277809,-187.426937,0.00044109,14]
[357437006,1744066277819,-500.0,0.00044109,30]
[357437008,1744066277828,-632.63,0.00044109,30]
[357437010,1744066277837,-283.378543,0.00044109,14]
[357437012,1744066277847,-283.378543,0.00044109,14]
[357437014,1744066277857,-500.0,0.00044109,30]
[357437016,1744066277866,-500.0,0.00044109,30]
[357437018,1744066277876,-500.0,0.00044109,30]
[357437020,1744066277887,-178.54925436,0.00044109,30]
[357437022,1744066277899,-151.0,0.00044109,14]
[357437024,1744066277910,-151.0,0.00044109,14]
[357437026,1744066277920,-500.0,0.00044109,30]
[357437028,1744066277929,-283.378543,0.00044109,14]
[357437030,1744066277940,-283.378548,0.00044109,14]
[357437032,1744066277950,-649.27,0.00044109,30]
[357437034,1744066277961,-500.0,0.00044109,30]
[357437036,1744066277971,-500.0,0.00044109,30]
[357437038,1744066277980,-500.0,0.00044109,30]
[357437040,1744066277990,-500.0,0.00044109,30]
[357437042,1744066277999,-655.74,0.00044109,30]
[357437044,1744066278010,-500.0,0.00044109,30]
[357437046,1744066278020,-716.53,0.00044109,30]
[357437048,1744066278030,-500.0,0.00044109,30]
[357437050,1744066278040,-845.16,0.00044109,30]
[357437052,1744066278050,-500.0,0.00044109,30]
[357437054,1744066278061,-1093.56,0.00044109,30]
[357437056,1744066278071,-550.56,0.00044109,30]
[357437058,1744066278081,-1527.51,0.00044109,30]
[357437060,1744066278091,-1016.7,0.00044109,30]
[357437062,1744066278102,-500.0,0.00044109,30]
[357437064,1744066278111,-858.61,0.00044109,30]
[357437066,1744066278123,-500.0,0.00044109,30]
[357437068,1744066278133,-500.0,0.00044109,30]
[357437070,1744066278142,-795.52,0.00044109,30]
[357437072,1744066278152,-2674.51,0.00044109,30]
[357437074,1744066278162,-151.0,0.00044109,14]
[357437076,1744066278172,-500.0,0.00044109,30]
[357437078,1744066278183,-252.307268,0.00044109,14]
[357437080,1744066278193,-500.0,0.00044109,30]
[357437082,1744066278203,-500.0,0.00044109,30]
[357437084,1744066278213,-500.0,0.00044109,30]
[357437086,1744066278223,-500.0,0.00044109,30]
[357437088,1744066278233,-500.0,0.00044109,30]
[357437090,1744066278243,-500.0,0.00044109,30]
[357437092,1744066278253,-500.0,0.00044109,30]
[357437094,1744066278263,-862.42,0.00044109,30]
[357437096,1744066278274,-500.0,0.00044109,30]
[357437098,1744066278284,-656.95,0.00044109,30]
[357437100,1744066278295,-1010.48,0.00044109,30]
[357437102,1744066278305,-500.0,0.00044109,30]
[357437104,1744066278315,-783.64,0.00044109,30]
[357437106,1744066278326,-683.51,0.00044109,30]
[357437108,1744066278336,-1379.65,0.00044109,30]
[357437110,1744066278346,-816.1,0.00044109,30]
[357437112,1744066278357,-500.0,0.00044109,30]
[357437114,1744066278367,-893.16,0.00044109,30]
[357437116,1744066278378,-500.0,0.00044109,30]
[357437118,1744066278388,-1094.93,0.00044109,30]
[357437120,1744066278399,-500.0,0.00044109,30]
[357437122,1744066278410,-891.4,0.00044109,30]
[357437124,1744066278420,-500.0,0.00044109,30]
[357437126,1744066278430,-3046.18,0.00044109,2]
[357437128,1744066278440,-833.66,0.00044109,30]
[357437130,1744066278451,-500.0,0.00044109,30]
[357437132,1744066278462,-919.96,0.00044109,30]
[357437134,1744066278472,-500.0,0.00044109,30]
[357437136,1744066278482,-896.26,0.00044109,30]
[357437138,1744066278492,-1069.78,0.00044109,30]
[357437140,1744066278502,-500.0,0.00044109,30]
[357437142,1744066278512,-1065.99,0.00044109,30]
[357437145,1744066278522,-656.61,0.00044109,30]
[357437147,1744066278533,-533.22,0.00044109,30]
[357437149,1744066278543,-777.78,0.00044109,30]
[357437151,1744066278553,-545.03,0.00044109,30]
[357437153,1744066278563,-500.0,0.00044109,30]
[357437155,1744066278573,-841.39,0.00044109,30]
[357437157,1744066278583,-500.0,0.00044109,30]
[357437159,1744066278593,-888.33,0.00044109,30]
[357437161,1744066278603,-306.6692186,0.00044109,30]
[357437163,1744066278613,-680.95,0.00044109,30]
[357437164,1744066278623,-500.0,0.00044109,30]
[357437166,1744066278632,-151.0,0.00044109,14]
[357437168,1744066278642,-522.62,0.00044109,30]
[357437170,1744066278652,-592.28,0.00044109,30]
[357437172,1744066278662,-500.0,0.00044109,30]
[357437174,1744066278672,-500.0,0.00044109,30]
[357437176,1744066278683,-206.9622654,0.00044109,30]
[357437178,1744066278695,-500.0,0.00044109,30]
[357437180,1744066278704,-500.0,0.00044109,30]
[357437182,1744066278714,-500.0,0.00044109,30]
[357437184,1744066278723,-500.0,0.00044109,30]
[357437186,1744066278733,-500.0,0.00044109,30]
[357437188,1744066278743,-823.7,0.00044109,30]
[357437190,1744066278752,-500.0,0.00044109,30]
[357437192,1744066278762,-500.0,0.00044109,30]
[357437194,1744066278772,-500.0,0.00044109,30]
[357437196,1744066278783,-500.0,0.00044109,30]
[357437198,1744066278794,-1087.6,0.00044109,30]
[357437200,1744066278804,-500.0,0.00044109,30]
[357437202,1744066278814,-1093.4,0.00044109,30]
[357437204,1744066278824,-500.0,0.00044109,30]
[357437206,1744066278835,-708.06,0.00044109,30]
[357437208,1744066278845,-547.45,0.00044109,30]
[357437210,1744066278855,-500.0,0.00044109,30]
[357437212,1744066278866,-500.0,0.00044109,30]
[357437214,1744066278876,-500.0,0.00044109,30]
[357437217,1744066278887,-500.0,0.00044109,30]
[357437219,1744066278900,-500.0,0.00044109,30]
[357437221,1744066278911,-451.99036,0.00044109,14]
[357437223,1744066278922,-451.99036,0.00044109,14]
[357437225,1744066278935,-1786.51,0.00044109,30]
[357437227,1744066278945,-1031.56,0.00044109,30]
[357437229,1744066278955,-876.14,0.00044109,30]
[357437231,1744066278966,-500.0,0.00044109,30]
[357437233,1744066278976,-500.0,0.00044109,30]
[357437235,1744066278986,-1074.38,0.00044109,30]
[357437237,1744066278995,-980.03,0.00044109,30]
[357437239,1744066279006,-500.0,0.00044109,30]
[357437241,1744066279016,-451.99036,0.00044109,14]
[357437243,1744066279026,-451.99036,0.00044109,14]
[357437245,1744066279037,-500.0,0.00044109,30]
[357437247,1744066279047,-928.97,0.00044109,30]
[357437249,1744066279057,-500.0,0.00044109,30]
[357437251,1744066279067,-536.48,0.00044109,30]
[357437253,1744066279078,-500.0,0.00044109,30]
[357437255,1744066279089,-500.0,0.00044109,30]
[357437257,1744066279098,-937.24,0.00044109,30]
[357437259,1744066279108,-500.0,0.00044109,30]
[357437261,1744066279118,-552.74,0.00044109,30]
[357437263,1744066279128,-952.87,0.00044109,30]
[357437265,1744066279138,-500.0,0.00044109,30]
[357437267,1744066279147,-546.08,0.00044109,30]
[357437269,1744066279157,-6768.69,0.00044109,2]
[357437271,1744066279167,-500.0,0.00044109,30]
[357437273,1744066279176,-500.0,0.00044109,30]
[357437275,1744066279186,-500.0,0.00044109,30]
[357437277,1744066279196,-1194.32,0.00044109,30]
[357437279,1744066279206,-500.0,0.00044109,30]
[357437281,1744066279216,-1169.03,0.00044109,30]
[357437283,1744066279226,-558.47,0.00044109,30]
[357437285,1744066279236,-841.78,0.00044109,30]
[357437287,1744066279246,-500.0,0.00044109,30]
[357437289,1744066279255,-500.0,0.00044109,30]
[357437291,1744066279265,-500.0,0.00044109,30]
[357437293,1744066279276,-500.0,0.00044109,30]
[357437295,1744066279287,-1662.61,0.00044109,30]
[357437297,1744066279297,-500.0,0.00044109,30]
[357437299,1744066279307,-551.0,0.00044109,30]
[357437301,1744066279317,-796.34,0.00044109,30]
[357437303,1744066279328,-854.08,0.00044109,30]
[357437305,1744066279338,-281.88513,0.00044109,14]
[357437307,1744066279348,-500.0,0.00044109,30]
[357437309,1744066279359,-281.88513,0.00044109,14]
[357437311,1744066279369,-500.0,0.00044109,30]
[357437313,1744066279380,-500.0,0.00044109,30]
[357437315,1744066279390,-743.25,0.00044109,30]
[357437317,1744066279401,-281.88513,0.00044109,14]
[357437319,1744066279417,-281.88513,0.00044109,14]
[357437321,1744066279428,-500.0,0.00044109,30]
[357437323,1744066279439,-500.0,0.00044109,30]
[357437325,1744066279449,-500.0,0.00044109,30]
[357437328,1744066279460,-1994.31,0.00044109,30]
[357437329,1744066279470,-186.85589854,0.00044109,30]
[357437332,1744066279480,-428.48,0.00044109,30]
[357437334,1744066279491,-628.94,0.00044109,30]
[357437335,1744066279500,-500.0,0.00044109,30]
[357437338,1744066279510,-500.0,0.00044109,30]
[357437340,1744066279525,-925.55,0.00044109,30]
[357437342,1744066279537,-818.14,0.00044109,30]
[357437344,1744066279547,-500.0,0.00044109,30]
[357437346,1744066279558,-500.0,0.00044109,30]
[357437348,1744066279568,-500.0,0.00044109,30]
[357437350,1744066279578,-654.15,0.00044109,30]
[357437352,1744066279588,-151.0,0.00044109,14]
[357437354,1744066279598,-500.0,0.00044109,30]
[357437356,1744066279608,-151.0,0.00044109,14]
[357437358,1744066279618,-500.0,0.00044109,30]
[357437360,1744066279628,-391.86114324,0.00044109,30]
[357437362,1744066279638,-500.0,0.00044109,30]
[357437364,1744066279650,-839.96,0.00044109,30]
[357437365,1744066279660,-921.36,0.00044109,30]
[357437366,1744066279670,-1521.11,0.00044109,30]
[357437367,1744066279679,-500.0,0.00044109,30]
[357437368,1744066279689,-879.74,0.00044109,30]
[357437369,1744066279698,-529.64,0.00044109,30]
[357437370,1744066279708,-500.0,0.00044109,30]
[357437371,1744066279718,-651.98,0.00044109,30]
[357437372,1744066279727,-500.0,0.00044109,30]
[357437373,1744066279737,-793.46,0.00044109,30]
[357437374,1744066279746,-500.0,0.00044109,30]
[357437375,1744066279756,-500.0,0.00044109,30]
[357437376,1744066279768,-500.0,0.00044109,30]
[357437377,1744066279780,-500.0,0.00044109,30]
[357437378,1744066279790,-500.0,0.00044109,30]
[357437379,1744066279800,-2906.37,0.00044109,30]
[357437380,1744066279810,-671.5,0.00044109,30]
[357437381,1744066279821,-241.78,0.00044109,7]
[357437383,1744066279831,-500.0,0.00044109,30]
[357437385,1744066279841,-525.95,0.00044109,30]
[357437387,1744066279851,-500.0,0.00044109,30]
[357437388,1744066279861,-500.0,0.00044109,30]
[357437390,1744066279871,-500.0,0.00044109,30]
[357437392,1744066279881,-662.58,0.00044109,30]
[357437394,1744066279894,-500.0,0.00044109,30]
[357437396,1744066279905,-639.99148691,0.00044109,30]
[357437398,1744066279915,-917.62,0.00044109,30]
[357437400,1744066279925,-500.0,0.00044109,30]
[357437402,1744066279938,-790.05,0.00044109,30]
[357437404,1744066279948,-500.0,0.00044109,30]
[357437406,1744066279958,-1044.52,0.00044109,30]
[357437408,1744066279975,-500.0,0.00044109,30]
[357437410,1744066279985,-500.0,0.00044109,30]
[357437412,1744066279994,-554.54,0.00044109,30]
[357437414,1744066280004,-500.0,0.00044109,30]
[357437416,1744066280013,-787.78,0.00044109,30]
[357437418,1744066280023,-500.0,0.00044109,30]
[357437420,1744066280033,-500.0,0.00044109,30]
[357437422,1744066280043,-782.81,0.00044109,30]
[357437424,1744066280052,-500.0,0.00044109,30]
[357437426,1744066280062,-500.0,0.00044109,30]
[357437428,1744066280072,-1062.83,0.00044109,30]
[357437430,1744066280081,-500.0,0.00044109,30]
[357437432,1744066280090,-997.31,0.00044109,30]
[357437434,1744066280100,-1091.37,0.00044109,30]
[357437436,1744066280109,-500.0,0.00044109,30]
[357437438,1744066280119,-500.0,0.00044109,30]
[357437440,1744066280128,-500.0,0.00044109,30]
[357437442,1744066280138,-500.0,0.00044109,30]
[357437444,1744066280147,-500.0,0.00044109,30]
[357437446,1744066280158,-803.81,0.00044109,30]
[357437448,1744066280168,-619.3,0.00044109,30]
[357437450,1744066280178,-500.0,0.00044109,30]
[357437452,1744066280188,-633.28,0.00044109,30]
[357437454,1744066280198,-500.0,0.00044109,30]
[357437456,1744066280208,-329.2783015,0.00044109,10]
[357437458,1744066280219,-9526.32,0.00044109,30]
[357437460,1744066280229,-500.0,0.00044109,30]
[357437462,1744066280239,-635.5,0.00044109,30]
[357437464,1744066280250,-1000.0,0.00044109,30]
[357437466,1744066280260,-620.57,0.00044109,30]
[357437468,1744066280271,-546.27,0.00044109,30]
[357437470,1744066280282,-500.0,0.00044109,30]
[357437473,1744066280292,-1862.05,0.00044109,30]
[357437475,1744066280302,-190.30325816,0.00044109,30]
[357437477,1744066280312,-500.0,0.00044109,30]
[357437479,1744066280323,-500.0,0.00044109,30]
[357437481,1744066280333,-574.64,0.00044109,30]
[357437483,1744066280343,-1399.68,0.00044109,30]
[357437485,1744066280353,-500.0,0.00044109,30]
[357437487,1744066280364,-500.0,0.00044109,30]
[357437489,1744066280374,-500.0,0.00044109,30]
[357437491,1744066280384,-629.42,0.00044109,30]
[357437493,1744066280394,-6827.3,0.00044109,30]
[357437495,1744066280404,-500.0,0.00044109,30]
[357437497,1744066280414,-500.0,0.00044109,30]
[357437499,1744066280424,-500.0,0.00044109,30]
[357437501,1744066280434,-271.298567,0.00044109,14]
[357437503,1744066280444,-500.0,0.00044109,30]
[357437505,1744066280454,-540.85,0.00044109,30]
[357437507,1744066280464,-3500.0,0.00044109,10]
[357437509,1744066280475,-500.0,0.00044109,30]
[357437511,1744066280485,-500.0,0.00044109,30]
[357437513,1744066280496,-754.16,0.00044109,30]
[357437515,1744066280506,-1017.12,0.00044109,30]
[357437517,1744066280516,-541.35,0.00044109,30]
[357437519,1744066280526,-586.38,0.00044109,30]
[357437521,1744066280537,-2298.58,0.00044109,8]
[357437523,1744066280547,-1336.79,0.00044109,30]
[357437525,1744066280559,-1000.0,0.00044109,120]
[357437527,1744066280571,-500.0,0.00044109,30]
[357437529,1744066280583,-662.04,0.00044109,30]
[357437531,1744066280594,-500.0,0.00044109,30]
[357437533,1744066280603,-500.0,0.00044109,30]
[357437535,1744066280619,-750.64,0.00044109,30]
[357437537,1744066280640,-500.0,0.00044109,30]
[357437539,1744066280652,-500.0,0.00044109,30]